Cogmind - Beta 12 --- EXPLORER MODE // 2024.01.25 @ 06:11:58 // Winter2019/RPGLIKE Player: BVrutally Odd Result: Fortifying 0b10! Performance ------------- Evolutions (9) 4500 Regions Visited (21) 4200 Robots Destroyed (562) 2810 Value Destroyed (34793) 34793 Prototype IDs (112) 2240 Alien Tech Used (0) 0 Bonus (20591) 20591 TOTAL SCORE: 69134 Bonus ------- High Alert Combat Kills 4256 Follower Combat Kills 35 Entered Garrisons 800 Used RIF Installer 2000 Destroyed MAIN.C Guards 500 Met MAIN.C 5000 Destroyed MAIN.C Shell 5000 Win 3000 Cogmind --------- Core Integrity 1236/1650 Matter 300/300 Energy 480/480 System Corruption 0% Temperature Cool (0) Movement Flying (25) Location By MAIN.C's Side Parts ------- > --- POWER (2) -------- Zero-point Reactor Zero-point Reactor > --- PROPULSION (6) --- Improved Q-thruster Improved Q-thruster Improved Q-thruster Improved Q-thruster Improved Q-thruster Improved Q-thruster > --- UTILITY (14) ----- Experimental Melee Analysis Suite Experimental Melee Analysis Suite Experimental Melee Analysis Suite Experimental Melee Analysis Suite Experimental Target Analyzer Experimental Core Analyzer Experimental Core Analyzer Femtoactuators Experimental Actuator Array Advanced Force Booster Experimental Reaction Control System Experimental Phase Shifter Graphene Brace Advanced Corruption Screen > --- WEAPON (4) ------- Enhanced Force Lance Enhanced Force Lance Enhanced Force Lance Enhanced Force Lance > --- INVENTORY (2) ---- Protomatter-74 Protomatter-74 Peak State ------------ > --- POWER ------------ Zero-point Reactor Zero-point Reactor > --- PROPULSION ------- Improved Q-thruster Improved Q-thruster Improved Q-thruster Improved Q-thruster Improved Q-thruster Improved Q-thruster > --- UTILITY ---------- Experimental Melee Analysis Suite Experimental Melee Analysis Suite Experimental Melee Analysis Suite Experimental Melee Analysis Suite Experimental Target Analyzer Experimental Core Analyzer Advanced Particle Accelerator Femtoactuators Experimental Actuator Array Advanced Force Booster Experimental Reaction Control System Experimental Phase Shifter Experimental Hacking Suite Advanced Corruption Screen > --- WEAPON ----------- Enhanced Force Lance Enhanced Force Lance Enhanced Force Lance Enhanced Force Lance > --- INVENTORY -------- (None) [Rating: 238] Favorites ----------- Power Zero-point Reactor Engine Light Ion Engine Power Core Nuclear Core Reactor Zero-point Reactor Propulsion Improved Q-thruster Treads Centrium Heavy Treads Leg Aluminum Leg Hover Unit Hover Unit Flight Unit Improved Q-thruster Utility Experimental Melee Analysis Suite Device Femtoactuators Processor Experimental Melee Analysis Suite Hackware Advanced Hacking Suite Protection Weapon Shielding Weapon Enhanced Force Lance Energy Gun EM Pulse Gun Energy Cannon Beam Cannon Ballistic Gun Enhanced Autogun Ballistic Cannon Heavy Linear Accelerator Special Weapon Mining Laser Impact Weapon Hammer Slashing Weapon Greatsword Piercing Weapon Enhanced Force Lance Build | -11 -10 -10 -10 -9 -8 -7 -6 -5 -4 -4 -4 -4 -3 -3 -2 -2 -2 -1 -1 -1 -1 ------- Run | Jun Mat Min Exi Min Mat Fac Fac Fac Fac Gar Fac Gar Res Arm Res Tes Gar Acc Gar Acc Com Slots Evolved 22 | 7 . . 1 . 1 4 3 2 . 1 . . 2 1 . . . . . . . Power 1 | . . . . . . . . . . . . . 1 . . . . . . . . Propulsion 5 | 3 . . . . . 2 . . . . . . . . . . . . . . . Utility 13 | 3 . . 1 . 1 2 2 2 . . . . 1 1 . . . . . . . Weapon 3 | 1 . . . . . . 1 . . 1 . . . . . . . . . . . Parts Attached 200 | 8 14 8 . . 12 23 15 1 3 15 11 3 17 26 1 15 3 1 . 1 23 Power 19 | 1 . . . . 1 . 3 . . 1 . . 1 3 . 2 3 1 . . 3 Engine 1 | 1 . . . . . . . . . . . . . . . . . . . . . Core 2 | . . . . . 1 . 1 . . . . . . . . . . . . . . Reactor 16 | . . . . . . . 2 . . 1 . . 1 3 . 2 3 1 . . 3 Propulsion 50 | 2 7 4 . . 1 7 . . 1 6 3 . 5 8 . 1 . . . . 5 Treads 2 | . . . . . . . . . . 1 . . . . . . . . . . 1 Leg 6 | 2 2 . . . . . . . . 1 . . . . . . . . . . 1 Wheel . | . . . . . . . . . . . . . . . . . . . . . . Hover 6 | . 5 1 . . . . . . . . . . . . . . . . . . . Flight 36 | . . 3 . . 1 7 . . 1 4 3 . 5 8 . 1 . . . . 3 Utility 83 | 3 3 1 . . 2 13 7 1 2 4 7 . 9 12 1 6 . . . 1 11 Device 44 | . . 1 . . . 4 2 . 1 4 2 . 6 10 . 4 . . . 1 9 Storage . | . . . . . . . . . . . . . . . . . . . . . . Processor 18 | 1 . . . . . 1 3 1 . . 5 . 3 1 . 1 . . . . 2 Hackware 15 | . . . . . 2 8 2 . 1 . . . . . 1 1 . . . . . Protection 6 | 2 3 . . . . . . . . . . . . 1 . . . . . . . Artifact . | . . . . . . . . . . . . . . . . . . . . . . Weapon 48 | 2 4 3 . . 8 3 5 . . 4 1 3 2 3 . 6 . . . . 4 Energy Gun 6 | 1 1 . . . 2 . . . . . . . . . . 1 . . . . 1 Energy Cannon 4 | . 1 2 . . . . . . . . . . . . . 1 . . . . . Ballistic Gun 9 | 1 1 . . . 6 1 . . . . . . . . . . . . . . . Ballistic Cannon 3 | . . . . . . . . . . 1 . 1 . . . . . . . . 1 Launcher . | . . . . . . . . . . . . . . . . . . . . . . Special Weapon 1 | . 1 . . . . . . . . . . . . . . . . . . . . Impact Weapon 1 | . . 1 . . . . . . . . . . . . . . . . . . . Slashing Weapon 2 | . . . . . . 2 . . . . . . . . . . . . . . . Piercing Weapon 22 | . . . . . . . 5 . . 3 1 2 2 3 . 4 . . . . 2 Special Melee Weapon . | . . . . . . . . . . . . . . . . . . . . . . Unidentified Prototypes 39 | . . . . . 3 2 1 . 1 5 1 . 3 3 . 7 . . . 1 12 Parts Lost 3 | . . . . . . 1 . . . . . . . 1 . . . . . 1 . Power . | . . . . . . . . . . . . . . . . . . . . . . Propulsion . | . . . . . . . . . . . . . . . . . . . . . . Utility 3 | . . . . . . 1 . . . . . . . 1 . . . . . 1 . Weapon . | . . . . . . . . . . . . . . . . . . . . . . Highest Loss Streak 1 | . . . . . . 1 . . . . . . . 1 . . . . . 1 . To Critical Strikes . | . . . . . . . . . . . . . . . . . . . . . . Average Slot Usage (%) 95 | . 87 93 87 83 83 90 97 100 99 99 100 99 95 92 95 96 96 100 100 99 99 Reactor 3 | . . . . . . . 4 4 4 4 4 4 4 3 3 3 3 7 7 7 7 Leg 1 | . 29 . . . . . . . . . . . . . . . . . . . . Hover 1 | . 1 28 8 8 1 . . . . . . . . . . . . . . . . Flight 23 | . . 6 26 25 29 28 30 28 27 26 26 26 24 23 23 23 23 23 23 23 22 Device 14 | . . 1 8 8 7 7 9 9 12 16 17 17 16 19 25 23 23 23 23 22 22 Processor 17 | . 9 9 8 8 7 5 10 14 13 9 14 21 23 24 23 25 26 26 26 26 27 Hackware 12 | . . . . . 6 25 30 28 27 26 19 13 11 4 3 3 3 3 3 3 2 Protection 2 | . 21 20 8 8 7 2 . . . . . . . . . . . . . . . Energy Cannon 1 | . 7 15 17 16 6 . . . . . . . . . . . . . . . . Ballistic Gun 1 | . 6 . . . 7 10 . . . . . . . . . . . . . . . Piercing Weapon 11 | . . . . . . . 9 14 13 13 17 16 16 15 15 14 15 15 15 15 14 Naked Turns . | . . . . . . . . . . . . . . . . . . . . . . Heaviest Build 83 | 11 21 22 11 11 15 16 34 34 42 58 60 60 70 69 69 68 68 83 83 83 83 Greatest Support 84 | 20 45 29 17 17 21 37 37 37 44 62 66 66 70 72 72 74 79 84 84 84 84 Greatest Overweight (x) 2 | . 1 . . . . . . . . 2 . . 1 1 . . . . . . 1 Average Overweight (x) . | . . . . . . . . . . . . . . . . . . . . . . Largest Inventory Capacity 2 | . 1 1 1 1 2 2 2 2 2 2 2 2 2 2 2 2 2 2 2 2 2 Average Capacity 1 | . . 1 1 1 1 2 2 2 2 2 2 2 2 2 2 2 2 2 2 2 2 Most Carried 2 | . 1 1 1 1 2 2 2 2 1 2 2 2 2 2 1 2 1 1 . 1 2 Average Carried 1 | . . 1 1 1 1 1 1 1 . . . 1 1 1 1 1 . . . . . Final Capacity 2 | . 1 1 1 1 2 2 2 2 2 2 2 2 2 2 2 2 2 2 2 2 2 Final Carried 2 | . 1 1 1 1 2 2 2 1 1 . 1 2 2 1 1 1 1 . . . 2 Class Distribution -------------------- 60% | Wizard-Sprinter 28% | Machinist-Sprinter 9% | Hacker-Mutant Dominant Class ---------------- Hacker-Mutant | -10/Materials Hacker-Mutant | -10/Mines Hacker-Mutant | -10/Exiles Hacker-Mutant | -9/Mines Wizard-Sprinter | -8/Materials Wizard-Sprinter | -7/Factory Wizard-Sprinter | -6/Factory Wizard-Sprinter | -5/Factory Wizard-Sprinter | -4/Factory Wizard-Sprinter | -4/Garrison Wizard-Sprinter | -4/Factory Wizard-Sprinter | -4/Garrison Wizard-Sprinter | -3/Research Wizard-Sprinter | -3/Armory Machinist-Sprinter | -2/Research Machinist-Sprinter | -2/Testing Machinist-Sprinter | -2/Garrison Machinist-Sprinter | -1/Access Machinist-Sprinter | -1/Garrison Machinist-Sprinter | -1/Access Machinist-Sprinter | -1/Command Resources | -11 -10 -10 -10 -9 -8 -7 -6 -5 -4 -4 -4 -4 -3 -3 -2 -2 -2 -1 -1 -1 -1 ----------- Run | Jun Mat Min Exi Min Mat Fac Fac Fac Fac Gar Fac Gar Res Arm Res Tes Gar Acc Gar Acc Com Matter Collected 3270 | 289 134 128 . . 105 1212 150 10 10 178 100 64 160 270 10 140 40 10 . 20 240 Remotely . | . . . . . . . . . . . . . . . . . . . . . . Salvage Created 30350 | 56 368 485 . . 228 1656 2654 1394 523 2153 1698 1050 3099 2462 218 872 3695 69 140 2133 5397 Parts 1708 | 2 22 23 . . 34 103 118 68 18 114 104 73 170 265 23 59 138 5 10 100 259 Haulers Intercepted 29 | . 2 . . . 2 2 6 2 1 1 3 . 6 . . . . . . 4 . Recyclers Shooed 2 | . . 1 . . . 1 . . . . . . . . . . . . . . . Parts Field Recycled . | . . . . . . . . . . . . . . . . . . . . . . Retrieved Matter . | . . . . . . . . . . . . . . . . . . . . . . Parts Self-Destructed . | . . . . . . . . . . . . . . . . . . . . . . Prevented . | . . . . . . . . . . . . . . . . . . . . . . Kills | -11 -10 -10 -10 -9 -8 -7 -6 -5 -4 -4 -4 -4 -3 -3 -2 -2 -2 -1 -1 -1 -1 ------- Run | Jun Mat Min Exi Min Mat Fac Fac Fac Fac Gar Fac Gar Res Arm Res Tes Gar Acc Gar Acc Com Combat Hostiles Destroyed 427 | . 5 6 . . 6 32 34 24 5 34 21 25 36 65 3 10 34 . 5 16 66 Melee 384 | . . . . . . 6 34 24 5 34 21 25 36 65 3 10 34 . 5 16 66 Guns 30 | . 1 . . . 5 24 . . . . . . . . . . . . . . . Cannons 11 | . 4 6 . . 1 . . . . . . . . . . . . . . . . AOE 2 | . . . . . . 2 . . . . . . . . . . . . . . . Classes Destroyed 24 | 1 3 3 . . 3 2 3 1 . . 1 1 . 2 . 2 . . . . 2 Worker 13 | . . . . . 1 4 3 . . . . . . . . . . . . . 5 Builder 13 | . . . . . 1 2 . . . . 1 . 6 . . 3 . . . . . Tunneler 1 | . . 1 . . . . . . . . . . . . . . . . . . . Hauler 29 | . 2 . . . 2 2 6 2 1 1 3 . 6 . . . . . . 4 . Recycler 12 | 1 1 3 . . . 2 3 . . . . . . . . . . . . 1 1 Operator 18 | . . . . . 2 3 1 1 . . 1 1 2 1 . 2 . . . 2 2 Watcher 49 | . 3 . . . 1 4 3 2 . . 8 . 6 5 2 3 . 2 . 7 3 Swarmer 83 | . . 4 . . 3 2 11 10 . 4 5 9 7 7 . . 3 . 3 8 7 Saboteur 4 | . . . . . . . . . . . . . . 4 . . . . . . . Grunt 118 | . 5 1 . . 1 20 11 8 2 10 7 6 7 15 . 5 15 . . 2 3 Brawler 6 | . . . . . . . . 1 1 1 1 . . . . . . . 1 1 . Duelist 10 | . . . . . . 2 2 . . 1 . . . 4 . . . . 1 . . Protector 3 | . . . . . . . 1 . . 1 . . . 1 . . . . . . . Researcher 3 | . . . . . . . . . . . . . . . . 3 . . . . . Sentry 60 | . . 1 . . 2 6 4 2 2 6 2 3 8 12 1 . 5 . . . 6 Demolisher 2 | . . . . . . . . . . . . . . 2 . . . . . . . Specialist 6 | . . . . . . . . . . . . 2 . 4 . . . . . . . Hunter 36 | . . . . . . . 2 2 . 6 2 4 7 4 . . 2 . . 2 5 Programmer 43 | . . . . . . 2 2 . . 4 2 . 6 11 2 4 5 . . 2 3 Heavy 1 | . . . . . . . . . . . 1 . . . . . . . . . . Behemoth 13 | . . . . . . . 1 1 . 1 1 1 1 1 . . 4 . . 1 1 M Guard 2 | . . . . . . . . . . . . . . . . . . . . . 2 Enhanced Q-Series 23 | . . . . . . . . . . . . . . . . . . . . . 23 Combat Programmer 2 | . . . . . . . . . . . . . . . . . . . . . 2 Alpha 7 1 | . . . . . . . . . . . . . . . . 1 . . . . . Thug 2 | . . . . . . . . . . . . . . . . . . . . . 2 Guerrilla 7 | . . . . . . . . . . . . . . . . . . . . . 7 Wizard 1 | . . . . . . . . . . . . . . . . . . . . . 1 Mutant 3 | . . . . . . . . . . . . . . . . . . . . . 3 Best Kill Streak 19 | 1 2 3 . . 7 11 6 10 6 13 9 9 10 7 5 7 8 2 3 19 11 Combat Bots Only 12 | . 2 2 . . 4 7 5 10 4 12 8 9 7 7 2 3 8 . 3 9 7 Max Kills in Single Turn 2 | 1 1 2 . . 2 2 1 2 1 1 1 2 1 1 1 2 2 1 1 1 2 Gunslinging 1 | . . . . . . 1 . . . . . . . . . . . . . . . Exploded 1 | . . . . . . 1 . . . . . . . . . . . . . . . Melee 2 | . . . . . . 1 1 2 1 1 1 2 1 1 1 2 2 . 1 1 2 Uniques/NPCs Destroyed 1 | . . . . . . . . . . . . . . . . . . . . . 1 MAIN.C Shell (-1/Command) Combat | -11 -10 -10 -10 -9 -8 -7 -6 -5 -4 -4 -4 -4 -3 -3 -2 -2 -2 -1 -1 -1 -1 -------- Run | Jun Mat Min Exi Min Mat Fac Fac Fac Fac Gar Fac Gar Res Arm Res Tes Gar Acc Gar Acc Com Damage Taken 10888 | . 93 46 . . 67 965 944 443 110 1201 560 417 854 1206 66 91 560 . 81 156 3028 Core 8866 | . 51 26 . . 48 726 761 361 96 989 451 348 704 999 59 82 461 . 63 125 2516 Absorbed by Shields 84 | . . . . . . . . . . 54 . 16 . . . . 14 . . . . Redirected to Core 6303 | . 45 22 . . 44 476 507 260 42 724 365 206 532 721 27 31 330 . 63 104 1804 Redirected to Shielding 69 | . 3 . . . 5 61 . . . . . . . . . . . . . . . Core Remaining (%) 95 | 100 . . . 100 100 100 100 91 . . . 100 . 86 . . 100 . . . 74 Volleys Fired 184 | 3 25 23 . . 19 107 . . . 1 . 2 . . . 2 . . . . 2 Largest 2 | 2 2 2 . . 2 2 . . . 1 . 1 . . . 1 . . . . 1 Hottest 160 | 60 160 160 . . 120 50 . . . 70 . 83 . . . 50 . . . . 80 Shots Fired 355 | 6 44 46 . . 38 214 . . . 1 . 2 . . . 2 . . . . 2 Gun 264 | 6 20 . . . 22 214 . . . . . . . . . 1 . . . . 1 Cannon 84 | . 20 43 . . 16 . . . . 1 . 2 . . . 1 . . . . 1 Launcher . | . . . . . . . . . . . . . . . . . . . . . . Special 7 | . 4 3 . . . . . . . . . . . . . . . . . . . Kinetic 258 | 3 15 . . . 22 214 . . . 1 . 2 . . . . . . . . 1 Thermal 88 | . 24 46 . . 16 . . . . . . . . . . 1 . . . . 1 Explosive . | . . . . . . . . . . . . . . . . . . . . . . Electromagnetic 9 | 3 5 . . . . . . . . . . . . . . 1 . . . . . Robot Hit Streak 51 | 5 16 20 . . 47 51 . . . . . . . . . . . . . . . Robot Miss Streak 5 | . 1 1 . . . 5 . . . . . . . . . . . . . . . Penetration Max . | . . . . . . . . . . . . . . . . . . . . . . Secondary Targets 8 | . . . . . . 8 . . . . . . . . . . . . . . . Max Gunslinging Chain 1 | . . . . . . 1 . . . . . . . . . . . . . . . Shots Hit Robots 1385 | 5 33 38 . . 30 190 116 54 10 96 62 46 103 127 6 33 104 4 12 49 267 Core Hits 644 | 2 17 14 . . 17 96 43 29 6 50 31 25 46 71 4 15 39 2 6 26 105 Critical Kills . | . . . . . . . . . . . . . . . . . . . . . . Critical Parts Destroyed 3 | . . 1 . . . 2 . . . . . . . . . . . . . . . Critical Strikes 207 | . . 1 . . . 6 14 10 . 16 7 5 15 16 2 3 23 . 3 16 70 Destroy 2 | . . . . . . 2 . . . . . . . . . . . . . . . Smash 1 | . . 1 . . . . . . . . . . . . . . . . . . . Sever 6 | . . . . . . 4 2 . . . . . . . . . . . . . . Impale 198 | . . . . . . . 12 10 . 16 7 5 15 16 2 3 23 . 3 16 70 Melee Attacks 1504 | . . 2 . . . 20 127 66 15 115 80 74 157 215 11 67 131 5 18 80 321 Impact 2 | . . 2 . . . . . . . . . . . . . . . . . . . Slashing 63 | . . . . . . 20 43 . . . . . . . . . . . . . . Piercing 1439 | . . . . . . . 84 66 15 115 80 74 157 215 11 67 131 5 18 80 321 Sneak Attacks 127 | . . . . . . 2 14 8 1 6 4 3 19 20 . 8 26 . . 5 11 Combat Hostiles 38 | . . . . . . . 1 6 . 2 . 2 2 8 . 1 10 . . . 6 Follow-up Attacks 305 | . . . . . . . 11 10 1 20 10 13 21 31 1 11 46 2 5 11 112 Damage Inflicted 115743 | 63 536 774 . . 578 4534 8194 4212 916 7984 5451 5161 12645 12064 859 4581 13875 348 1131 5253 26584 Guns 3616 | 63 180 . . . 348 3025 . . . . . . . . . . . . . . . Cannons 1153 | . 301 622 . . 230 . . . . . . . . . . . . . . . . Explosions 575 | . 28 . . . . 547 . . . . . . . . . . . . . . . Melee 110300 | . . 80 . . . 962 8194 4212 916 7984 5451 5161 12645 12064 859 4581 13875 348 1131 5253 26584 Ramming 1 | . 1 . . . . . . . . . . . . . . . . . . . . Kinetic 3524 | 26 125 . . . 348 3025 . . . . . . . . . . . . . . . Thermal 1279 | . 355 694 . . 230 . . . . . . . . . . . . . . . . Explosive . | . . . . . . . . . . . . . . . . . . . . . . Electromagnetic 639 | 37 55 . . . . 547 . . . . . . . . . . . . . . . Impact 80 | . . 80 . . . . . . . . . . . . . . . . . . . Slashing 3635 | . . . . . . 962 2673 . . . . . . . . . . . . . . Piercing 106585 | . . . . . . . 5521 4212 916 7984 5451 5161 12645 12064 859 4581 13875 348 1131 5253 26584 Highest Corruption 1 | . . . . . . 1 . . . . . . . . . . . . . . . Average Corruption 1 | . . . . . . 1 . . . . . . . . . . . . . . . Corruption Purged 1 | . . . . . . 1 . . . . . . . . . . . . . . . Corruption Blocked 24 | . . . . . . . . . . . 5 . 10 2 1 . 1 . . 1 4 Effects 10 | . . . . . . 10 . . . . . . . . . . . . . . . Message Errors 3 | . . . . . . 3 . . . . . . . . . . . . . . . Matter Fused 4 | . . . . . . 4 . . . . . . . . . . . . . . . Energy Discharges 2 | . . . . . . 2 . . . . . . . . . . . . . . . Data Loss (minor) 1 | . . . . . . 1 . . . . . . . . . . . . . . . Overload Shots . | . . . . . . . . . . . . . . . . . . . . . . Overflow Damage 18862 | . . 80 . . . 80 1253 480 . 805 1212 692 3060 1995 361 1428 2306 72 208 1290 3540 Projectiles . | . . . . . . . . . . . . . . . . . . . . . . Explosions . | . . . . . . . . . . . . . . . . . . . . . . Melee 18862 | . . 80 . . . 80 1253 480 . 805 1212 692 3060 1995 361 1428 2306 72 208 1290 3540 Knockbacks . | . . . . . . . . . . . . . . . . . . . . . . Impact . | . . . . . . . . . . . . . . . . . . . . . . Kinetic . | . . . . . . . . . . . . . . . . . . . . . . Secondary . | . . . . . . . . . . . . . . . . . . . . . . Self-Inflicted Damage 88 | . . . . . . 88 . . . . . . . . . . . . . . . Shots 3 | . . . . . . 3 . . . . . . . . . . . . . . . Rammed . | . . . . . . . . . . . . . . . . . . . . . . Targets Rammed 1 | . 1 . . . . . . . . . . . . . . . . . . . . Kicked 1 | . 1 . . . . . . . . . . . . . . . . . . . . Crushed . | . . . . . . . . . . . . . . . . . . . . . . Highest Temperature 297 | . 297 100 . . 26 11 166 . 1 2 28 12 3 16 . . . 1 . 7 22 Average Temperature 67 | . 99 35 . . 15 8 90 . 1 2 12 4 3 11 . . . 1 . 7 7 Received Heat Transfer 2452 | . 81 6 . . 27 654 339 81 55 302 103 60 85 176 9 9 138 . . 12 315 Siege Activations . | . . . . . . . . . . . . . . . . . . . . . . Robots Corrupted . | . . . . . . . . . . . . . . . . . . . . . . Combat Hostiles . | . . . . . . . . . . . . . . . . . . . . . . Parts Fried 2 | . 1 . . . . . . . . . . . . . . . . . . . 1 Impact Corruptions 7 | . . 7 . . . . . . . . . . . . . . . . . . . Robots Melted . | . . . . . . . . . . . . . . . . . . . . . . Combat Hostiles . | . . . . . . . . . . . . . . . . . . . . . . Parts Melted 12 | . . 4 . . 5 . 1 . . . . . . 1 . . . . . . 1 Heat Transferred 2605 | . 679 1445 . . 481 . . . . . . . . . . . . . . . . Parts Sabotaged 8 | . . . . . . . . . . . . . . 8 . . . . . . . Parts Stolen . | . . . . . . . . . . . . . . . . . . . . . . Parts Stripped . | . . . . . . . . . . . . . . . . . . . . . . Power Chain Reactions 2 | . 1 . . . . 1 . . . . . . . . . . . . . . . Missiles Intercepted . | . . . . . . . . . . . . . . . . . . . . . . Alert | -11 -10 -10 -10 -9 -8 -7 -6 -5 -4 -4 -4 -4 -3 -3 -2 -2 -2 -1 -1 -1 -1 ------- Run | Jun Mat Min Exi Min Mat Fac Fac Fac Fac Gar Fac Gar Res Arm Res Tes Gar Acc Gar Acc Com Peak Influence 1438 | 5 136 259 . . 147 664 578 582 464 1169 869 624 309 534 185 398 470 216 270 866 1438 Initial 455 | . 2 37 . . . 27 50 207 209 258 455 341 263 17 1 78 2 172 135 122 424 Average 271 | 3 43 140 . . 56 129 257 260 365 770 626 394 92 184 71 204 219 179 193 482 898 Maximum Alert Level 4 | . . 1 . . . 2 2 2 2 4 3 2 1 2 . 1 2 1 1 3 4 Low Security (%) 53 | 100 100 68 . 100 100 87 34 23 . . . 16 83 48 100 54 44 77 69 8 53 Level 1 23 | . . 31 . . . 5 34 64 37 12 . 30 16 43 . 45 46 22 30 52 . Level 2 14 | . . . . . . 6 30 12 62 22 82 52 . 8 . . 8 . . 10 10 Level 3 4 | . . . . . . . . . . 53 17 . . . . . . . . 29 8 Level 4 3 | . . . . . . . . . . 11 . . . . . . . . . . 28 Level 5 . | . . . . . . . . . . . . . . . . . . . . . . High Security . | . . . . . . . . . . . . . . . . . . . . . . Max Security . | . . . . . . . . . . . . . . . . . . . . . . Squads Dispatched 32 | . . . . . . 6 5 3 1 . 2 . 5 6 . . . . . 1 3 Investigation 14 | . . . . . . 3 1 2 1 . . . 3 2 . . . . . . 2 Extermination 10 | . . . . . . 2 2 . . . . . 1 4 . . . . . . 1 Reinforcement 6 | . . . . . . 1 1 1 . . 2 . 1 . . . . . . . . Assault 2 | . . . . . . . 1 . . . . . . . . . . . . 1 . Garrison . | . . . . . . . . . . . . . . . . . . . . . . Intercept . | . . . . . . . . . . . . . . . . . . . . . . Searches Triggered . | . . . . . . . . . . . . . . . . . . . . . . Construction Impeded . | . . . . . . . . . . . . . . . . . . . . . . Haulers Reinforced 3 | . . . . . . . 1 1 . . . . 1 . . . . . . . . Active Scanning Responses . | . . . . . . . . . . . . . . . . . . . . . . Cargo Convoy Interrupts . | . . . . . . . . . . . . . . . . . . . . . . Stealth | -11 -10 -10 -10 -9 -8 -7 -6 -5 -4 -4 -4 -4 -3 -3 -2 -2 -2 -1 -1 -1 -1 --------- Run | Jun Mat Min Exi Min Mat Fac Fac Fac Fac Gar Fac Gar Res Arm Res Tes Gar Acc Gar Acc Com Distress Signals 26 | . 1 . . . . 2 . . 1 . 1 . 1 5 . . . . . 3 12 Communications Jammed . | . . . . . . . . . . . . . . . . . . . . . . Distress Signals . | . . . . . . . . . . . . . . . . . . . . . . Times Spotted 543 | . 9 8 . . 9 43 44 28 12 33 30 29 44 64 6 13 27 3 17 30 94 Peak Tracking Total 14 | . 3 2 . . 3 6 5 7 10 7 6 7 5 6 3 3 7 2 14 8 12 Tactical Retreats 17 | . . . . . . 1 4 1 . 3 1 1 1 2 . . . . . . 3 Traps | -11 -10 -10 -10 -9 -8 -7 -6 -5 -4 -4 -4 -4 -3 -3 -2 -2 -2 -1 -1 -1 -1 ------- Run | Jun Mat Min Exi Min Mat Fac Fac Fac Fac Gar Fac Gar Res Arm Res Tes Gar Acc Gar Acc Com Traps Triggered 26 | . 2 . . . 1 1 . 1 . 2 2 4 2 7 . . 4 . . . . Indirectly . | . . . . . . . . . . . . . . . . . . . . . . Trap Hack Attempts . | . . . . . . . . . . . . . . . . . . . . . . Triggered . | . . . . . . . . . . . . . . . . . . . . . . Disarmed . | . . . . . . . . . . . . . . . . . . . . . . Reprogrammed 1 | . . . . . . . . . . . . . . 1 . . . . . . . Reused 1 | . . . . . . . . . . . . . . 1 . . . . . . . Traps Extracted . | . . . . . . . . . . . . . . . . . . . . . . Installed . | . . . . . . . . . . . . . . . . . . . . . . Triggered 2 | . . . . . . . . . . . . . . 1 . . . . . . 1 Machines | -11 -10 -10 -10 -9 -8 -7 -6 -5 -4 -4 -4 -4 -3 -3 -2 -2 -2 -1 -1 -1 -1 ---------- Run | Jun Mat Min Exi Min Mat Fac Fac Fac Fac Gar Fac Gar Res Arm Res Tes Gar Acc Gar Acc Com Machines Disabled 45 | . 1 1 . . . 23 . . . . . 6 1 5 . 4 . . . 4 . Max in Single Turn 6 | . 1 1 . . . 6 . . . . . 1 1 1 . 1 . . . 1 . Garrison Access 5 | . . . . . . 1 . 2 . . . . 1 . . . . . . 1 . Garrison Relay 2 | . . . . . . . . . . 1 . . . . . . 1 . . . . Machines Repaired . | . . . . . . . . . . . . . . . . . . . . . . Machines Sabotaged . | . . . . . . . . . . . . . . . . . . . . . . Overloaded Fab Kills . | . . . . . . . . . . . . . . . . . . . . . . Hacking | -11 -10 -10 -10 -9 -8 -7 -6 -5 -4 -4 -4 -4 -3 -3 -2 -2 -2 -1 -1 -1 -1 --------- Run | Jun Mat Min Exi Min Mat Fac Fac Fac Fac Gar Fac Gar Res Arm Res Tes Gar Acc Gar Acc Com Machines Accessed 101 | . 5 . . . 3 10 5 9 4 1 6 1 20 13 1 11 3 3 1 . 5 Terminals 73 | . 4 . . . 3 6 3 6 2 1 3 1 14 9 1 10 3 1 1 . 5 Fabricators 15 | . . . . . . 2 2 . 1 . 2 . 4 4 . . . . . . . Repair Stations . | . . . . . . . . . . . . . . . . . . . . . . Recycling Units 4 | . 1 . . . . 1 . 1 . . . . . . . . . 1 . . . Scanalyzers 1 | . . . . . . . . . . . . . 1 . . . . . . . . Garrison Access 8 | . . . . . . 1 . 2 1 . 1 . 1 . . 1 . 1 . . . Total Hacks 417 | . 16 . . . 11 46 36 67 15 1 27 7 80 59 2 27 8 4 1 . 10 Successful 304 | . 10 . . . 11 39 31 65 10 1 23 4 50 35 1 11 6 2 1 . 4 Failed 113 | . 6 . . . . 7 5 2 5 . 4 3 30 24 1 16 2 2 . . 6 Catastrophic 18 | . 1 . . . . 1 . . . . . . 7 2 . 4 . . . . 3 Database Lockouts . | . . . . . . . . . . . . . . . . . . . . . . Manual 182 | . 5 . . . 4 17 12 54 9 . 12 6 33 9 2 4 6 2 . . 7 Terminals 307 | . 14 . . . 11 32 12 62 12 1 13 7 59 35 2 26 8 2 1 . 10 Fabricators 92 | . . . . . . 12 24 . 2 . 12 . 18 24 . . . . . . . Repair Stations . | . . . . . . . . . . . . . . . . . . . . . . Recycling Units 6 | . 2 . . . . 1 . 2 . . . . . . . . . 1 . . . Scanalyzers 2 | . . . . . . . . . . . . . 2 . . . . . . . . Garrison Access 10 | . . . . . . 1 . 3 1 . 2 . 1 . . 1 . 1 . . . Terminal Hacks 207 | . 9 . . . 11 25 7 60 7 1 9 4 31 21 1 10 6 . 1 . 4 Record 30 | . 3 . . . 3 1 . 12 1 . 1 . 3 6 . . . . . . . Part Schematic 28 | . . . . . . 5 7 2 1 . 3 . 8 . . 2 . . . . . Robot Analysis 24 | . 2 . . . . 2 . 12 . . . . 4 2 . 1 . . . . 1 Prototype ID Bank 33 | . 1 . . . . 4 . 25 . . . . 1 2 . . . . . . . Open Door 2 | . . . . . . . . . . . . . . . . 1 . . . . 1 Level Access Points 8 | . 1 . . . 1 1 . 1 1 . 1 . . 1 . 1 . . . . . Branch Access Points 9 | . . . . . 1 1 . 1 1 . 1 . 1 1 1 1 . . . . . Emergency Access Points 1 | . . . . . . . . . . . . 1 . . . . . . . . . Machine Index 5 | . . . . . . . . . 1 . 1 . 1 1 . 1 . . . . . Terminal Index 5 | . . . . . . 1 . 1 . . . . 1 1 . . . . . . 1 Fabricator Index 2 | . . . . . . 1 . . . . . . 1 . . . . . . . . Garrison Index 1 | . . . . . . . . . . . . . 1 . . . . . . . . Unreport Threat 34 | . . . . . 2 6 . 4 . . 2 3 6 5 . 2 4 . . . . Locate Traps 1 | . . . . . . . . . . . . . . 1 . . . . . . . Reprogram Traps 1 | . . . . . . . . . . . . . . 1 . . . . . . . Dispatch Records 1 | . . . . . . 1 . . . . . . . . . . . . . . . Transport Status 1 | . . . . . . 1 . . . . . . . . . . . . . . . Recall Investigation 1 | . . . . . . . . . . . . . 1 . . . . . . . . Hauler Manifests 2 | . . . . . 1 1 . . . . . . . . . . . . . . . Registered Components 5 | . 1 . . . 2 . . . 1 . . . 1 . . . . . . . . Registered Prototypes 3 | . . . . . . . . 1 1 . . . 1 . . . . . . . . Zone Layout 5 | . 1 . . . 1 . . 1 . . . . 1 . . 1 . . . . . Garrison Registry 2 | . . . . . . . . . . 1 . . . . . . . . 1 . . Patrol Navigation 1 | . . . . . . . . . . . . . . . . . 1 . . . . Security Stations 1 | . . . . . . . . . . . . . . . . . 1 . . . . Disengage Seal 1 | . . . . . . . . . . . . . . . . . . . . . 1 Fabricator Hacks 80 | . . . . . . 12 24 . 2 . 12 . 16 14 . . . . . . . Load Schematic 41 | . . . . . . 6 12 . 1 . 6 . 8 8 . . . . . . . Build 39 | . . . . . . 6 12 . 1 . 6 . 8 6 . . . . . . . Repair Station Hacks . | . . . . . . . . . . . . . . . . . . . . . . Recycling Unit Hacks 5 | . 1 . . . . 1 . 2 . . . . . . . . . 1 . . . Retrieve Matter 1 | . . . . . . . . 1 . . . . . . . . . . . . . Retrieve Components 4 | . 1 . . . . 1 . 1 . . . . . . . . . 1 . . . Scanalyzer 2 | . . . . . . . . . . . . . 2 . . . . . . . . Insert Component 1 | . . . . . . . . . . . . . 1 . . . . . . . . Analyze 1 | . . . . . . . . . . . . . 1 . . . . . . . . Garrison Access Hacks 10 | . . . . . . 1 . 3 1 . 2 . 1 . . 1 . 1 . . . Unlock Access 4 | . . . . . . . . . 1 . 1 . . . . 1 . 1 . . . Seal Access 4 | . . . . . . 1 . 2 . . . . 1 . . . . . . . . Coupler Status 2 | . . . . . . . . 1 . . 1 . . . . . . . . . . Unauthorized Hacks . | . . . . . . . . . . . . . . . . . . . . . . Terminals . | . . . . . . . . . . . . . . . . . . . . . . Fabricators . | . . . . . . . . . . . . . . . . . . . . . . Repair Stations . | . . . . . . . . . . . . . . . . . . . . . . Recycling Units . | . . . . . . . . . . . . . . . . . . . . . . Scanalyzers . | . . . . . . . . . . . . . . . . . . . . . . Garrison Access . | . . . . . . . . . . . . . . . . . . . . . . Data Cores Recovered 12 | . . . . . 2 2 1 . . . 1 . 1 1 . 2 . . . . 2 Used 5 | . . . . . 1 1 1 . . . . . . . . 1 . . . . 1 Hacking Detections 70 | . 5 . . . 1 8 4 5 3 . 5 . 13 9 . 9 3 2 . . 3 Full Trace Events 15 | . 2 . . . . 3 1 1 1 . . . 3 2 . . . . . . 2 Feedback Events 2 | . . . . . . 1 . . . . . . . 1 . . . . . . . Hackware Fried 2 | . . . . . . 1 . . . . . . . 1 . . . . . . . Feedback Blocked . | . . . . . . . . . . . . . . . . . . . . . . Robot Schematics Acquired 5 | . . . . . . . . . . . . . . . . 5 . . . . . Robots Built . | . . . . . . . . . . . . . . . . . . . . . . Authchips . | . . . . . . . . . . . . . . . . . . . . . . Time . | . . . . . . . . . . . . . . . . . . . . . . Total Robot Build Rating . | . . . . . . . . . . . . . . . . . . . . . . Part Schematics Acquired 33 | . . . . . . 5 7 2 1 . 3 . 9 . . 6 . . . . . Parts Built 45 | . . . . . . 6 16 . 1 . 7 . 9 6 . . . . . . . Authchips . | . . . . . . . . . . . . . . . . . . . . . . Time 4511 | . . . . . . 656 1316 . 69 . 395 . 1076 999 . . . . . . . Total Part Build Rating 323 | . . . . . . 30 102 . 9 . 53 . 75 54 . . . . . . . Parts Repaired . | . . . . . . . . . . . . . . . . . . . . . . Time . | . . . . . . . . . . . . . . . . . . . . . . Parts Recycled . | . . . . . . . . . . . . . . . . . . . . . . Recycled Matter . | . . . . . . . . . . . . . . . . . . . . . . Retrieved Matter . | . . . . . . . . . . . . . . . . . . . . . . Retrieved Components 9 | . 3 . . . . 6 . . . . . . . . . . . . . . . Parts Scanalyzed 1 | . . . . . . . . . . . . . 1 . . . . . . . . Part Schematics Acquired 1 | . . . . . . . . . . . . . 1 . . . . . . . . Parts Damaged . | . . . . . . . . . . . . . . . . . . . . . . Bothacking | -11 -10 -10 -10 -9 -8 -7 -6 -5 -4 -4 -4 -4 -3 -3 -2 -2 -2 -1 -1 -1 -1 ------------ Run | Jun Mat Min Exi Min Mat Fac Fac Fac Fac Gar Fac Gar Res Arm Res Tes Gar Acc Gar Acc Com Used RIF Installer 4 | . . . . . . . . . . 1 . 1 . . . . 1 . 1 . . Hotswap 1 | . . . . . . . . . . . . . . . . . . . 1 . . Zone Cloak 1 | . . . . . . . . . . . . 1 . . . . . . . . . Patrol Navigation 1 | . . . . . . . . . . . . . . . . . 1 . . . . Robots Hacked . | . . . . . . . . . . . . . . . . . . . . . . Non-combat . | . . . . . . . . . . . . . . . . . . . . . . Combat . | . . . . . . . . . . . . . . . . . . . . . . Robot Hacks Applied . | . . . . . . . . . . . . . . . . . . . . . . Relay Couplers Released 6 | . . . . . . . . . . 2 . . . . . . 3 . . 1 . Machine Destruction 4 | . . . . . . . . . . 2 . . . . . . 1 . . 1 . Programmers 2 | . . . . . . . . . . . . . . . . . 2 . . . . Fabnet Peak Effective % . | . . . . . . . . . . . . . . . . . . . . . . Robots Rewired . | . . . . . . . . . . . . . . . . . . . . . . Allies Hacked . | . . . . . . . . . . . . . . . . . . . . . . Hacks Repelled . | . . . . . . . . . . . . . . . . . . . . . . Allies | -11 -10 -10 -10 -9 -8 -7 -6 -5 -4 -4 -4 -4 -3 -3 -2 -2 -2 -1 -1 -1 -1 -------- Run | Jun Mat Min Exi Min Mat Fac Fac Fac Fac Gar Fac Gar Res Arm Res Tes Gar Acc Gar Acc Com Total Allies 13 | . . 2 . . . . . . . . . 2 . 9 . . . . . . . Largest Group 9 | . . 2 . . . . . . . . . 2 . 9 . . . . . . . Highest-Rated Group 427 | . . 42 . . . . . . . . . 142 . 427 . . . . . . . Highest-Rated Ally 80 | . . 31 . . . . . . . . . 80 . 51 . . . . . . . Total Orders 2 | . . . . . . . . . . . . . . 2 . . . . . . . ROAM 2 | . . . . . . . . . . . . . . 2 . . . . . . . Ally Attacks 39 | . . 6 . . . . . . . . . . . 33 . . . . . . . Total Damage 1287 | . . 106 . . . . . . . . . . . 1181 . . . . . . . Kills 5 | . . 1 . . . . . . . . . . . 4 . . . . . . . Allies Corrupted 2 | . . . . . . . . . . . . . . 2 . . . . . . . Allies Melted 4 | . . . . . . . . . . . . . . . . . . . . . 4 Intel | -11 -10 -10 -10 -9 -8 -7 -6 -5 -4 -4 -4 -4 -3 -3 -2 -2 -2 -1 -1 -1 -1 ------- Run | Jun Mat Min Exi Min Mat Fac Fac Fac Fac Gar Fac Gar Res Arm Res Tes Gar Acc Gar Acc Com Robot Analysis Total 24 | . 2 . . . . 2 . 12 . . . . 4 2 . 1 . . . . 1 Derelict Logs Recovered 2 | . . 2 . . . . . . . . . . . . . . . . . . . Drone Launches . | . . . . . . . . . . . . . . . . . . . . . . Drone Recoveries . | . . . . . . . . . . . . . . . . . . . . . . Exploration | -11 -10 -10 -10 -9 -8 -7 -6 -5 -4 -4 -4 -4 -3 -3 -2 -2 -2 -1 -1 -1 -1 ------------- Run | Jun Mat Min Exi Min Mat Fac Fac Fac Fac Gar Fac Gar Res Arm Res Tes Gar Acc Gar Acc Com Turns Passed 13636 | 115 671 435 66 30 181 1398 1558 292 186 634 607 379 1806 2492 76 443 462 49 62 279 1415 Spaces Moved 17022 | 87 468 749 195 68 256 1380 1295 633 318 662 1037 518 1695 2913 194 1138 831 154 157 551 1723 Core 112 | 23 . . . . . . . . . 89 . . . . . . . . . . . Treads . | . . . . . . . . . . . . . . . . . . . . . . Legs 501 | 64 436 . . . . . . . . . . . . . . . . . . . 1 Wheels . | . . . . . . . . . . . . . . . . . . . . . . Hover 464 | . 32 432 . . . . . . . . . . . . . . . . . . . Flight 15945 | . . 317 195 68 256 1380 1295 633 318 573 1037 518 1695 2913 194 1138 831 154 157 551 1722 Fastest Speed 17 | 50 48 34 34 34 29 20 20 20 19 19 17 17 20 22 24 24 25 25 25 25 25 Average Speed 27 | 101 115 43 34 34 30 24 20 20 19 37 19 19 20 24 24 24 25 25 25 25 25 Slowest Speed 190 | 120 126 56 34 34 34 29 20 20 20 150 20 20 93 100 24 25 25 25 25 25 190 Overloaded Moves 10 | . . . . . . . . . . . 6 4 . . . . . . . . . Propulsion Burnouts . | . . . . . . . . . . . . . . . . . . . . . . Robots Hopped 39 | . . 1 . . 1 3 7 1 . . 5 . 2 . . 8 . . . 5 6 Cave-ins Triggered 2 | . . . . . . . . . . . . . 1 1 . . . . . . . Exploration Rate (%) 42 | 6 54 94 58 30 25 43 26 22 12 55 27 84 42 99 7 82 73 5 35 19 40 Regions Visited 21 Branch Regions 6 Pre-discovered Areas 1 | . . 1 . . . . . . . . . . . . . . . . . . . Known Exits Taken 17 | 1 1 1 1 1 1 1 1 1 1 . 1 . 1 1 1 1 . 1 . 1 . Unknown Exits Taken . | . . . . . . . . . . . . . . . . . . . . . . Scrap Searched . | . . . . . . . . . . . . . . . . . . . . . . Spaces Dug 75 | . . 1 . . . 1 4 . 2 2 4 1 14 27 1 11 1 . . . 6 Terrain Destroyed 125 | . 3 1 . . . 46 4 . 2 3 4 2 14 27 1 11 1 . . . 6 Melee 73 | . . 1 . . . 1 4 . 2 2 4 . 14 27 1 10 1 . . . 6 Projectile 5 | . 1 . . . . . . . . 1 . 2 . . . 1 . . . . . AOE 47 | . 2 . . . . 45 . . . . . . . . . . . . . . . Terrain Rammed . | . . . . . . . . . . . . . . . . . . . . . . Walls Destroyed . | . . . . . . . . . . . . . . . . . . . . . . Machines Disabled . | . . . . . . . . . . . . . . . . . . . . . . Actions | -11 -10 -10 -10 -9 -8 -7 -6 -5 -4 -4 -4 -4 -3 -3 -2 -2 -2 -1 -1 -1 -1 --------- Run | Jun Mat Min Exi Min Mat Fac Fac Fac Fac Gar Fac Gar Res Arm Res Tes Gar Acc Gar Acc Com Total 24499 | 103 544 804 194 74 328 2276 2433 730 426 933 1351 720 3043 4588 216 1256 1012 162 168 636 2502 Wait 5273 | 6 18 9 . 7 20 685 961 33 84 69 200 69 1139 1396 5 45 47 5 . 33 442 Move 16925 | 86 467 746 194 67 253 1373 1280 630 318 661 1027 516 1689 2911 193 1122 829 154 156 541 1712 Hop 37 | . . 1 . . 1 3 7 1 . . 5 . 2 . . 8 . . . 4 5 Pick Up 30 | . 2 . . . 2 1 3 . 1 3 2 1 3 4 . 1 . . . 1 6 Fast Attach 147 | 8 13 8 . . 11 14 7 . 1 7 6 3 9 21 1 13 . . . 2 23 Attach 21 | . . . . . . . 1 1 1 6 2 . 2 3 . 1 3 1 . . . Detach 12 | . . . . . . . . . . 5 1 . 1 . . 2 3 . . . . Swap 33 | . 1 . . . 1 9 7 . 1 2 3 . 6 2 . 1 . . . . . Drop 137 | . 9 9 . . 9 14 9 . 1 10 6 3 15 8 1 14 . . . 2 27 Fire 184 | 3 25 23 . . 19 107 . . . 1 . 2 . . . 2 . . . . 2 Melee 917 | . . 2 . . . 20 110 44 11 82 56 49 97 128 6 36 62 2 9 42 161 Ram . | . . . . . . . . . . . . . . . . . . . . . . Kick 1 | . 1 . . . . . . . . . . . . . . . . . . . . Crush . | . . . . . . . . . . . . . . . . . . . . . . Escape Stasis 210 | . . . . . . . . . . 26 13 52 37 42 . . 40 . . . . Rewire . | . . . . . . . . . . . . . . . . . . . . . . Trap . | . . . . . . . . . . . . . . . . . . . . . . Miscellaneous 572 | . 8 6 . . 12 50 48 21 8 61 30 25 43 73 10 11 28 . 3 11 124 Route ------- -11/Junkyard -10/Materials (discovered 4 exits: *Mat x3 / *Min) -10/Mines (discovered 3 exits: *Mat x2 / *Exi) -10/Exiles -9/Mines -8/Materials (discovered 3 exits: *Fac x3) -7/Factory (discovered 7 exits: *Fac x4 / *Sto / Low x2) -6/Factory -5/Factory (discovered 6 exits: *Fac x4 / *Upp x2) -4/Factory (discovered 9 exits: Res x4 / *Upp x2 / Ext x2 / Gar) -4/Garrison (discovered 3 exits: *Fac x3) -4/Factory (discovered 9 exits: *Res x4 / Upp x2 / Ext x2 / Gar) -4/Garrison (discovered 3 exits: *Res x3) -3/Research (discovered 3 exits: *Arm / Qua x2) -3/Armory (discovered 2 exits: *Res x2) -2/Research (discovered 3 exits: *Acc / *Tes x2) -2/Testing (discovered 2 exits: *Acc / Gar) -2/Garrison (discovered 3 exits: *Acc x3) -1/Access -1/Garrison (discovered 3 exits: *Acc x3) -1/Access -1/Command (discovered 2 exits: Sur x2) By MAIN.C's Side History --------- Turn | Location | Event 4 | -11/Junkyard | Identified exit to Materials 4 | -11/Junkyard | Discovered exit to Materials (range 15) 22 | -11/Junkyard | Upgraded with Propulsion slot (x3) 22 | -11/Junkyard | Upgraded with Utility slot (x3) 22 | -11/Junkyard | Upgraded with Weapon slot (x1) 116 | -11/Junkyard | Entered Materials 215 | -10/Materials | Identified exit to Materials 318 | -10/Materials | Build established: Hacker-Mutant 620 | -10/Materials | Identified exit to Mines 620 | -10/Materials | Discovered exit to Mines (range 7) 787 | -10/Materials | Entered Mines 834 | -10/Mines | Learned location of 2 exits from Materials 846 | -10/Mines | Learned location of Storage (-7) 856 | -10/Mines | Joined a pair of Derelicts in attacking an 0b10 outpost 927 | -10/Mines | Reached level 2 958 | -10/Mines | Discovered exit to Materials (range 10) 1038 | -10/Mines | Discovered exit to Materials (range 7) 1136 | -10/Mines | Found a hidden stash of uninstalled traps 1215 | -10/Mines | Identified exit to Exiles 1215 | -10/Mines | Discovered exit to Exiles (range 9) 1220 | -10/Mines | Deemed a non-threat by the Exiles lab entrance 1222 | -10/Mines | Entered Exiles 1231 | -10/Exiles | Met 8R-AWN 1236 | -10/Exiles | Met EX-HEX 1247 | -10/Exiles | Met EX-BIN 1268 | -10/Exiles | Upgraded with Utility slot (x1) 1273 | -10/Exiles | Met EX-DEC 1285 | -10/Exiles | Identified exit to Mines 1285 | -10/Exiles | Discovered exit to Mines (range 10) 1288 | -10/Exiles | Entered Mines 1290 | -9/Mines | Reached level 3 1298 | -9/Mines | Met a Derelict bent on vengeance 1300 | -9/Mines | Received a Rocket Launcher from a helpful Derelict 1316 | -9/Mines | Identified exit to Materials 1316 | -9/Mines | Discovered exit to Materials (range 7) 1317 | -9/Mines | Assembled infested the area 1318 | -9/Mines | Entered Materials 1319 | -8/Materials | Identified exit to Factory 1320 | -8/Materials | Reached level 4 1320 | -8/Materials | Reached level 5 1320 | -8/Materials | Reached level 6 1339 | -8/Materials | Upgraded with Utility slot (x1) 1499 | -8/Materials | Entered Factory 1501 | -7/Factory | Reached level 7 1501 | -7/Factory | Reached level 8 1501 | -7/Factory | Reached level 9 1504 | -7/Factory | Upgraded with Utility slot (x2) 1643 | -7/Factory | Build established: Wizard-Sprinter 1659 | -7/Factory | Fabricated Imp. VTOL Module? 1780 | -7/Factory | Fabricated Imp. VTOL Module? 1866 | -7/Factory | Reached level 10 1898 | -7/Factory | Upgraded with Propulsion slot (x1) 2080 | -7/Factory | Identified exit to Storage 2080 | -7/Factory | Identified exit to Lower Caves 2080 | -7/Factory | Identified exit to Factory 2080 | -7/Factory | Reached level 11 2080 | -7/Factory | System Shield fried by hacking feedback 2080 | -7/Factory | Upgraded with Propulsion slot (x1) 2210 | -7/Factory | Destroyed 7 combat bots 2280 | -7/Factory | Reached level 12 2459 | -7/Factory | Fabricated Adv. System Shield (x1) 2568 | -7/Factory | Fabricated Adv. Hacking Suite? 2679 | -7/Factory | Fabricated Adv. Hacking Suite (x1) 2788 | -7/Factory | Fabricated Adv. Hacking Suite (x1) 2897 | -7/Factory | Entered another Factory area 2899 | -6/Factory | Reached level 13 2899 | -6/Factory | Reached level 14 2899 | -6/Factory | Upgraded with Utility slot (x1) 3010 | -6/Factory | Spotted B-75 Beast 3014 | -6/Factory | Destroyed B-75 Beast 3101 | -6/Factory | Reached level 15 3104 | -6/Factory | Upgraded with Utility slot (x1) 3155 | -6/Factory | Fabricated Adv. Reaction Control System? 3157 | -6/Factory | Fabricated Nanoactuators? 3268 | -6/Factory | Fabricated Lance (x2) 3270 | -6/Factory | Fabricated Adv. System Shield? 3372 | -6/Factory | Fabricated Adv. Melee Analysis Suite (x1) 3381 | -6/Factory | Fabricated Adv. Hacking Suite (x1) 3479 | -6/Factory | Fabricated Adv. Melee Analysis Suite? 3599 | -6/Factory | Fabricated Force Lance (x1) 3603 | -6/Factory | Upgraded with Weapon slot (x1) 3692 | -6/Factory | Fabricated Imp. Force Booster (x2) 3736 | -6/Factory | Fabricated Force Lance? 3859 | -6/Factory | Fabricated Force Lance (x1) 4011 | -6/Factory | Fabricated Imp. Corruption Screen (x2) 4192 | -6/Factory | Reached level 16 4218 | -6/Factory | Identified exit to Factory 4218 | -6/Factory | Discovered exit to Factory (range 10) 4297 | -6/Factory | First assault squad dispatched 4439 | -6/Factory | Reached level 17 4455 | -6/Factory | Entered another Factory area 4457 | -5/Factory | Reached level 18 4457 | -5/Factory | Upgraded with Utility slot (x1) 4472 | -5/Factory | Identified exit to Upper Caves 4472 | -5/Factory | Discovered exit to Upper Caves (range 14) 4536 | -5/Factory | Spotted B-75 Beast 4562 | -5/Factory | Destroyed B-75 Beast 4610 | -5/Factory | Identified exit to Factory 4626 | -5/Factory | Destroyed 7 combat bots 4675 | -5/Factory | Reached level 19 4739 | -5/Factory | Reached level 20 4745 | -5/Factory | Upgraded with Utility slot (x1) 4747 | -5/Factory | Entered another Factory area 4749 | -4/Factory | Reached level 21 4760 | -4/Factory | Destroyed 10 combat bots 4817 | -4/Factory | Identified exit to Upper Caves 4817 | -4/Factory | Identified exit to Extension 4817 | -4/Factory | Identified exit to Research 4905 | -4/Factory | Fabricated Adv. Phase Shifter (x1) 4930 | -4/Factory | Found Exp. System Shield 4933 | -4/Factory | Identified exit to Garrison 4933 | -4/Factory | Entered Garrison 4949 | -4/Garrison | Garrison Relay disabled 4962 | -4/Garrison | Reached level 22 5078 | -4/Garrison | Triggered checkpoint 5078 | -4/Garrison | Spotted B-86 Titan 5120 | -4/Garrison | Destroyed B-86 Titan 5128 | -4/Garrison | Triggered checkpoint 5130 | -4/Garrison | Reached level 23 5157 | -4/Garrison | Triggered checkpoint 5203 | -4/Garrison | Destroyed 12 combat bots 5209 | -4/Garrison | Found Prototype Device 5210 | -4/Garrison | Identified Exp. Transmission Jammer 5315 | -4/Garrison | Identified exit to Factory 5315 | -4/Garrison | Discovered exit to Factory (range 12) 5394 | -4/Garrison | Triggered checkpoint 5477 | -4/Garrison | Discovered exit to Factory (range 41) 5477 | -4/Garrison | Discovered exit to Factory (range 18) 5477 | -4/Garrison | Discovered exit to Factory (range 63) 5489 | -4/Garrison | Reached level 24 5494 | -4/Garrison | Upgraded with Weapon slot (x1) 5503 | -4/Garrison | Installed Relay Interface Framework 5504 | -4/Garrison | Found Enh. Force Lance 5506 | -4/Garrison | Found Enh. Force Lance 5567 | -4/Garrison | Entered Factory 5581 | -4/Factory | Spotted B-86 Titan 5588 | -4/Factory | Destroyed B-86 Titan 5621 | -4/Factory | Discovered exit to Research (range 15) 5873 | -4/Factory | Reached level 25 5900 | -4/Factory | Destroyed 8 combat bots 5972 | -4/Factory | Fabricated Exp. Melee Analysis Suite (x1) 5996 | -4/Factory | Fabricated Exp. Melee Analysis Suite (x1) 6072 | -4/Factory | Fabricated Exp. Melee Analysis Suite (x1) 6091 | -4/Factory | Fabricated Exp. Melee Analysis Suite (x1) 6121 | -4/Factory | Fabricated Adv. Force Booster (x2) 6164 | -4/Factory | Fabricated Adv. Actuator Array (x1) 6174 | -4/Factory | Identified exit to Garrison 6174 | -4/Factory | Entered Garrison 6234 | -4/Garrison | Spotted B-86 Titan 6242 | -4/Garrison | Triggered checkpoint 6259 | -4/Garrison | Destroyed B-86 Titan 6271 | -4/Garrison | Triggered checkpoint 6289 | -4/Garrison | Discovered exit to Research (range 8) 6291 | -4/Garrison | Expanded RIF knowledge: Zone Cloak 6322 | -4/Garrison | Triggered checkpoint 6443 | -4/Garrison | Discovered exit to Research (range 12) 6445 | -4/Garrison | Destroyed 9 combat bots 6458 | -4/Garrison | Triggered checkpoint 6517 | -4/Garrison | H-XX Assembler disabled 6539 | -4/Garrison | Discovered exit to Research (range 9) 6541 | -4/Garrison | Found embedded Infiltrators 6548 | -4/Garrison | Triggered checkpoint 6553 | -4/Garrison | Entered Research 6555 | -3/Research | Reached level 26 6555 | -3/Research | Reached level 27 6555 | -3/Research | Upgraded with Power slot (x1) 6555 | -3/Research | Upgraded with Utility slot (x1) 6567 | -3/Research | Identified exit to Armory 6567 | -3/Research | Identified exit to Quarantine 6600 | -3/Research | Crushed by falling debris 6836 | -3/Research | Fabricated Exp. Core Analyzer (x1) 6983 | -3/Research | Destroyed 7 combat bots 7048 | -3/Research | Destroyed 7 combat bots 7051 | -3/Research | Found Prototype Processor 7051 | -3/Research | Identified Spectral Analyzer 7185 | -3/Research | Reached level 28 7429 | -3/Research | Fabricated Femtoactuators (x1) 7653 | -3/Research | Fabricated Exp. Reaction Control System? 7686 | -3/Research | Found Enh. Force Lance 7688 | -3/Research | Found Enh. Force Lance 7849 | -3/Research | Fabricated Zero-point Reactor (x1) 7907 | -3/Research | Fabricated Cld. Aerolev Unit (x1) 7943 | -3/Research | Spotted B-86 Titan 7964 | -3/Research | Destroyed B-86 Titan 8045 | -3/Research | Fabricated Adv. Corruption Screen (x2) 8197 | -3/Research | Fabricated Imp. Q-thruster? 8311 | -3/Research | Fabricated Imp. Q-thruster (x1) 8359 | -3/Research | Entered Armory 8493 | -3/Armory | Fabricated Imp. Q-thruster? 8543 | -3/Armory | Identified exit to Research 8543 | -3/Armory | Reached level 29 8710 | -3/Armory | Fabricated Imp. Q-thruster? 8718 | -3/Armory | Adv. Hacking Suite fried by hacking feedback 8983 | -3/Armory | Destroyed 7 combat bots 9217 | -3/Armory | Fabricated Exp. Reaction Control System (x1) 9441 | -3/Armory | Fabricated Exp. Phase Shifter (x1) 9668 | -3/Armory | Fabricated Exp. Actuator Array? 9684 | -3/Armory | Spotted B-86 Titan 9915 | -3/Armory | Fabricated Zero-point Reactor? 9988 | -3/Armory | Build established: Machinist-Sprinter 10119 | -3/Armory | Assisted by bots powering up and referring to "LRC-V3" 10199 | -3/Armory | Reached level 30 10201 | -3/Armory | Upgraded with Utility slot (x1) 10257 | -3/Armory | Found Prototype Device 10257 | -3/Armory | Identified Exp. Thermal Defense Suite 10540 | -3/Armory | Destroyed B-86 Titan 10709 | -3/Armory | Crushed by falling debris 10851 | -3/Armory | Entered Research 10864 | -2/Research | Identified exit to Testing 10924 | -2/Research | Identified exit to Access 10924 | -2/Research | Discovered exit to Access (range 12) 10927 | -2/Research | Entered Testing 10929 | -2/Testing | Reached level 31 10941 | -2/Testing | Found Prototype Device 10941 | -2/Testing | Identified Exp. Hardlight Generator 10984 | -2/Testing | Spotted Alpha 7 11018 | -2/Testing | Destroyed Alpha 7 11022 | -2/Testing | Found Prototype Processor 11022 | -2/Testing | Identified Exp. Target Analyzer 11175 | -2/Testing | Found Prototype Energy Gun 11175 | -2/Testing | Identified Hyp. EM Gauss Rifle 11187 | -2/Testing | Found Prototype Energy Cannon 11187 | -2/Testing | Identified Cld. Nova Cannon 11288 | -2/Testing | Found Prototype Hackware 11288 | -2/Testing | Identified Exp. Hacking Suite 11370 | -2/Testing | Identified exit to Garrison 11370 | -2/Testing | Entered Garrison 11375 | -2/Garrison | Expanded RIF knowledge: Patrol Navigation 11380 | -2/Garrison | Triggered checkpoint 11381 | -2/Garrison | Reached level 32 11413 | -2/Garrison | Spotted B-90 Cyclops 11414 | -2/Garrison | Triggered checkpoint 11423 | -2/Garrison | Destroyed B-90 Cyclops 11423 | -2/Garrison | Triggered checkpoint 11442 | -2/Garrison | Triggered checkpoint 11467 | -2/Garrison | Destroyed 8 combat bots 11555 | -2/Garrison | Discovered exit to Access (range 10) 11597 | -2/Garrison | Learned Access security intel 11611 | -2/Garrison | Discovered exit to Access (range 11) 11630 | -2/Garrison | Triggered checkpoint 11630 | -2/Garrison | Garrison Relay disabled 11682 | -2/Garrison | Triggered checkpoint 11716 | -2/Garrison | Discovered exit to Access (range 13) 11718 | -2/Garrison | Spotted B-90 Cyclops 11721 | -2/Garrison | Destroyed B-90 Cyclops 11727 | -2/Garrison | Destroyed B-75 Beast 11741 | -2/Garrison | Destroyed B-90 Cyclops 11784 | -2/Garrison | Triggered checkpoint 11832 | -2/Garrison | Entered Access 11834 | -1/Access | Reached level 33 11881 | -1/Access | Identified exit to Garrison 11881 | -1/Access | Entered Garrison 11885 | -1/Garrison | Identified exit to Access 11885 | -1/Garrison | Discovered exit to Access (range 56) 11885 | -1/Garrison | Discovered exit to Access (range 60) 11885 | -1/Garrison | Discovered exit to Access (range 79) 11902 | -1/Garrison | Triggered checkpoint 11909 | -1/Garrison | Expanded RIF knowledge: Hotswap 11924 | -1/Garrison | Spotted B-99 Colossus 11926 | -1/Garrison | Triggered checkpoint 11943 | -1/Garrison | Entered Access 11948 | -1/Access | Spotted B-99 Colossus 11964 | -1/Access | Reached level 34 12021 | -1/Access | Destroyed B-99 Colossus 12178 | -1/Access | Destroyed 9 combat bots 12219 | -1/Access | Identified exit to Command 12219 | -1/Access | Discovered exit to Command (range 7) 12222 | -1/Access | Entered Command 12224 | -1/Command | Reached level 35 12357 | -1/Command | Spotted B-99 Colossus 12368 | -1/Command | Destroyed B-99 Colossus 12455 | -1/Command | Spotted M Guard 12455 | -1/Command | Spotted M Guard 12456 | -1/Command | Spotted Combat Programmer 12456 | -1/Command | Spotted Combat Programmer 12462 | -1/Command | Destroyed 7 combat bots 12470 | -1/Command | Destroyed Combat Programmer 12476 | -1/Command | Core integrity fell below 50% 12480 | -1/Command | Destroyed M Guard 12484 | -1/Command | Destroyed Combat Programmer 12487 | -1/Command | Destroyed M Guard 12487 | -1/Command | All MAIN.C guards destroyed 12520 | -1/Command | Destroyed 7 combat bots 12598 | -1/Command | Disengaged cave seal 12688 | -1/Command | Reached level 36 12770 | -1/Command | Destroyed 7 combat bots 12870 | -1/Command | Met MAIN.C 12874 | -1/Command | 0b10 Conduit disabled 12885 | -1/Command | Destroyed MAIN.C Shell 12887 | -1/Command | Surrendered to MAIN.C 12887 | -1/Command | Loaded intel: 61 machine locations 12887 | -1/Command | Loaded intel: 91 trap records 12887 | -1/Command | Identified exit to Surface 12887 | -1/Command | Discovered exit to Surface (range 106) 12887 | -1/Command | Discovered exit to Surface (range 37) 12903 | -1/Command | Found Prototype Processor 12903 | -1/Command | Identified Exp. Targeting Computer 12906 | -1/Command | Found Prototype Device 12906 | -1/Command | Identified Adv. Particle Accelerator 12908 | -1/Command | Found Prototype Device 12908 | -1/Command | Identified Exp. System Purifier 12910 | -1/Command | Found Prototype Device 12910 | -1/Command | Identified Adv. Kinecellerator 12913 | -1/Command | Found Prototype Device 12913 | -1/Command | Identified Beam Splitter 12917 | -1/Command | Found Prototype Device 12917 | -1/Command | Identified AEGIS Remote Shield 12923 | -1/Command | Found Prototype Reactor 12923 | -1/Command | Identified Vortex Chain Reactor 12927 | -1/Command | Found Zero-point Reactor 12985 | -1/Command | MAIN.C activated Command garrisons 13021 | -1/Command | Unknown forces attacked Command 13021 | -1/Command | Spotted EQ-002 13021 | -1/Command | Spotted EQ-008 13021 | -1/Command | Spotted EQ-000 13021 | -1/Command | Spotted EQ-005 13021 | -1/Command | Spotted EQ-001 13021 | -1/Command | Spotted EQ-006 13021 | -1/Command | Spotted EQ-003 13021 | -1/Command | Spotted EQ-013 13021 | -1/Command | Spotted EQ-004 13023 | -1/Command | Destroyed EQ-005 13031 | -1/Command | Destroyed EQ-013 13036 | -1/Command | Destroyed EQ-003 13041 | -1/Command | Destroyed EQ-006 13107 | -1/Command | Spotted EQ-025 13107 | -1/Command | Spotted EQ-020 13107 | -1/Command | Spotted EQ-024 13107 | -1/Command | Spotted EQ-018 13107 | -1/Command | Spotted EQ-019 13107 | -1/Command | Spotted EQ-021 13113 | -1/Command | Destroyed EQ-024 13115 | -1/Command | Destroyed EQ-020 13122 | -1/Command | Destroyed EQ-025 13211 | -1/Command | Spotted EQ-027 13211 | -1/Command | Spotted EQ-028 13216 | -1/Command | Destroyed EQ-027 13221 | -1/Command | Destroyed EQ-028 13223 | -1/Command | Spotted EQ-038 13223 | -1/Command | Spotted EQ-042 13231 | -1/Command | Destroyed EQ-038 13242 | -1/Command | Found Exp. Core Analyzer 13300 | -1/Command | Spotted EQ-048 13300 | -1/Command | Spotted EQ-045 13306 | -1/Command | Destroyed EQ-045 13334 | -1/Command | Spotted EQ-078 13335 | -1/Command | Spotted EQ-060 13340 | -1/Command | Destroyed EQ-060 13446 | -1/Command | Spotted EQ-084 13446 | -1/Command | Spotted EQ-082 13446 | -1/Command | Spotted EQ-081 13446 | -1/Command | Spotted EQ-102 13447 | -1/Command | Spotted EQ-077 13457 | -1/Command | Destroyed EQ-084 13459 | -1/Command | Spotted EQ-063 13459 | -1/Command | Spotted EQ-093 13460 | -1/Command | Spotted EQ-104 13465 | -1/Command | Destroyed EQ-104 13470 | -1/Command | Destroyed EQ-063 13473 | -1/Command | Destroyed EQ-093 13484 | -1/Command | Spotted EQ-097 13497 | -1/Command | Destroyed EQ-097 13509 | -1/Command | Spotted EQ-091 13513 | -1/Command | Destroyed EQ-091 13520 | -1/Command | Spotted EQ-105 13529 | -1/Command | Destroyed EQ-105 13559 | -1/Command | Spotted EQ-110 13569 | -1/Command | Destroyed EQ-110 13598 | -1/Command | Spotted EQ-109 13599 | -1/Command | Spotted EQ-088 13599 | -1/Command | Spotted EQ-117 13599 | -1/Command | Spotted EQ-036 13599 | -1/Command | Spotted EQ-106 13599 | -1/Command | Spotted EQ-098 13600 | -1/Command | Destroyed EQ-109 13613 | -1/Command | Destroyed EQ-117 13618 | -1/Command | Spotted EQ-064 13622 | -1/Command | Spotted EQ-086 13625 | -1/Command | Spotted EQ-127 13631 | -1/Command | Destroyed EQ-098 13636 | -1/Command | Attackers retreated from Command 13637 | *** | Fortifying 0b10! Last Messages --------------- 13628_ MAIN.C knocked back. 13628_ EQ-098 suffers critical hit (Impale). 13628_ Destroyed Exp. Heat Sink. 13630_ Knocked back. 13630_ Slug penetrates Reinforced Barrier. 13631_ EQ-098 destroyed. 13631_ Adv. Corruption Screen intercepted 1% system corruption. 13634_ EQ-106 suffers critical hit (Blast). 13634_ MAIN.C knocked back. 13634_ Penetrated by Slug. 13634_ EQ-106 suffers critical hit (Impale). 13635_ EQ-106 destroyed. 13636_ ALERT: Enemy forces retreating. MAIN.C: I admit your assistance was pivotal here. It looks like I was right to trust you. This attack appears to have been designed to merely test our defenses, although it was nearly effective enough to force me to take the conflict to the next level. Investigating the origins of these bots should be one of our highest priorities... Map ----- +----------------------------------------------------+ | ?????????????????????????#?#?#????# # # # | | ?????????????????????????#?#?#????# # # # | | ?????????????????????????#?#?#????# # # # | | ?????????????????????????#?#?#????################ | | ?????????????????????????#?#?#??????# #??# #?# #?? | | ?????????????????????????#?#?#??????# #??# #?# #?? | | ?????????????????????????#?#?#??????# #### ### ### | | ?????????????????????????#?#?#??????# | | ?????????????????????????#?#?#??????############## | | ?????????????????????????#?#?#?????????????# #?? | | ?????????????????????????#?#?#?????????????# #?? | | ?????????????????????????#?#?#?????????????# #?? | | ?????????????????????????#?#?#?????????????# #?? | | ?????????????????????????#?#?#?????????????# #?? | | ?????????????????????????#?#?#?????????????# #?? | | ?????????????????????????#?#?#?????????????# #?? | | ?????????????????????????#?#?#?????????????# #?? | | ?????????????????????????#?#?#?????????????# #?? | | #####################????#?#?#?????????????# #?? | | ????????????????????#????#?#?#?????????????# #?? | | ###################?#????#?#?#?????????????# #?? | | """ % %#####################????# #?? | | *=! %%%%%#?#???????????????#?#????# #?? | | "%=!%! =!*]%#######################??# #?? | | " %![% % =!%[!!%==%%*=*%%[== #??# #?? | | "=%!!]!%= % [!=%==%%=%=%@[[==== #??# #?? | | =%%*!!!*!!=% [%=]!%!===%%%%==*%%* #??# #?? | | /[%**]%%%!%*M%!=%################### #??# #?? | | !%%%!!!!==% =%!%#?#???????????????# #??# #?? | | ==%%%=!!=* % =%!################### ##?#####?# | | !!!= ]%= []!#?#????#?#?#??????# T#?# #?# | | !!** =%% !! #?#????#?#?#??????# #### ### | | % = % % !"#?#????#?#?#????? # | | [ "=#?#????#?#?#???? # == | | ] #?#????#?#?#????? # * ! | | ! %%]= #?#????#?#?#???? # [ | | * %% !!= " #?#????#?#?#??????# | | ! [ %!* #?#????#?#?#????? # # ## | | % %%]%!! #?#????#?#?#????? ###### # # | | ]!=! #?#????#?#?#???????????#### ## | | "% "" "" #?#????#?#?#?????????????# ## | | " " " #?#????#?#?#?????????????# ### | | "##################?#????#?#?#?????????????# [#?? | | ##??????????????????#????#?#?#?????????????#%*%#?? | | #####################????#?#?#?????????????#%!%#?? | | ?????????????????????????#?#?#?????????????#!=[#?? | | ?????????????????????????#?#?#?????????????# =!#?? | | ?????????????????????????#?#?#?????????????# #?? | | ?????????????????????????#?#?#?????????????# #?? | | ?????????????????????????#?#?#?????????????# #?? | +----------------------------------------------------+ Best States ------------- Heat Dissipation 61 Energy Generation 76 Energy Capacity 580 Matter Stores 300 Matter Capacity 300 Sight Range 18 Terrain Scan Density 10 Base Temperature (-) 100 Corruption Block 20 Armor Coverage 375 Resistance: KI 55 Resistance: TH 50 Resistance: EX 35 Resistance: EM 35 Resistance: I 35 Resistance: S 35 Resistance: P 35 Weapon Shielding 33 Melee Speed Boost 50 Phase Shifting 20 Evasion (%) 99 Targeting Accuracy 5 Melee Accuracy 48 Target Analysis 10 Core Analysis 12 Armor Integrity Analysis 40 Recoil Reduction 2 Force Boost 40 Offensive Hacking 96 Defensive Hacking 40 Item Schematics ----------------- Imp. VTOL Module | -7/Factory | Hacked Imp. Melee Analysis Suite | -7/Factory | Hacked Coolant Injector | -7/Factory | Hacked Adv. Hacking Suite | -7/Factory | Hacked Adv. System Shield | -7/Factory | Hacked Adv. Reaction Control System | -6/Factory | Hacked Nanoactuators | -6/Factory | Hacked Adv. Melee Analysis Suite | -6/Factory | Hacked Imp. Force Booster | -6/Factory | Hacked Lance | -6/Factory | Hacked Force Lance | -6/Factory | Hacked Imp. Corruption Screen | -6/Factory | Hacked Exp. Optical Array | -5/Factory | Hacked Particle Reactor | -5/Factory | Hacked Adv. Phase Shifter | -4/Factory | Hacked Adv. Actuator Array | -4/Factory | Hacked Exp. Melee Analysis Suite | -4/Factory | Hacked Adv. Force Booster | -4/Factory | Hacked Exp. Core Analyzer | -3/Research | Hacked Femtoactuators | -3/Research | Hacked Exp. Reaction Control System | -3/Research | Hacked Cld. Aerolev Unit | -3/Research | Hacked Exp. Actuator Array | -3/Research | Hacked Exp. Phase Shifter | -3/Research | Hacked Zero-point Reactor | -3/Research | Hacked Adv. Corruption Screen | -3/Research | Hacked Imp. Q-thruster | -3/Research | Scanalyzed Exp. Power Amplifier | -2/Testing | Archive Exp. Focal Shield | -2/Testing | Archive Exp. Flexi-carbon Leg | -2/Testing | Archive Helical Railgun | -2/Testing | Hacked Enh. Nova Cannon | -2/Testing | Hacked Exp. Q-thruster | -2/Testing | Archive Robot Schematics ------------------ S-43 Plague | -2/Testing | Archive T-07 Excavator | -2/Testing | Archive R-06 Scavenger | -2/Testing | Archive E-15 Imp | -2/Testing | Archive L-61 Swordsman | -2/Testing | Archive Fabricated ------------ Imp. VTOL Module | x1 | -7/Factory Imp. VTOL Module | x1 | -7/Factory Adv. System Shield | x1 | -7/Factory Adv. Hacking Suite | x1 | -7/Factory Adv. Hacking Suite | x1 | -7/Factory Adv. Hacking Suite | x1 | -7/Factory Adv. Reaction Control System | x1 | -6/Factory Nanoactuators | x2 | -6/Factory Lance | x2 | -6/Factory Adv. System Shield | x1 | -6/Factory Adv. Melee Analysis Suite | x1 | -6/Factory Adv. Hacking Suite | x1 | -6/Factory Adv. Melee Analysis Suite | x1 | -6/Factory Force Lance | x1 | -6/Factory Imp. Force Booster | x2 | -6/Factory Force Lance | x1 | -6/Factory Force Lance | x1 | -6/Factory Imp. Corruption Screen | x2 | -6/Factory Adv. Phase Shifter | x1 | -4/Factory Exp. Melee Analysis Suite | x1 | -4/Factory Exp. Melee Analysis Suite | x1 | -4/Factory Exp. Melee Analysis Suite | x1 | -4/Factory Exp. Melee Analysis Suite | x1 | -4/Factory Adv. Force Booster | x2 | -4/Factory Adv. Actuator Array | x1 | -4/Factory Exp. Core Analyzer | x1 | -3/Research Femtoactuators | x1 | -3/Research Exp. Reaction Control System | x1 | -3/Research Zero-point Reactor | x1 | -3/Research Cld. Aerolev Unit | x1 | -3/Research Adv. Corruption Screen | x2 | -3/Research Imp. Q-thruster | x1 | -3/Research Imp. Q-thruster | x1 | -3/Research Imp. Q-thruster | x1 | -3/Armory Imp. Q-thruster | x1 | -3/Armory Exp. Reaction Control System | x1 | -3/Armory Exp. Phase Shifter | x1 | -3/Armory Exp. Actuator Array | x1 | -3/Armory Zero-point Reactor | x1 | -3/Armory Alien Tech Used ----------------- None Achievements -------------- None Challenges ------------ None RPGLIKE | -11 -10 -10 -10 -9 -8 -7 -6 -5 -4 -4 -4 -4 -3 -3 -2 -2 -2 -1 -1 -1 -1 --------- Run | Jun Mat Min Exi Min Mat Fac Fac Fac Fac Gar Fac Gar Res Arm Res Tes Gar Acc Gar Acc Com Levels Raised 35 | . . 1 . 1 3 6 5 3 1 3 1 . 3 2 . 1 1 1 . 1 2 XP Earned 59473 | 6000 890 1377 200 843 5383 8864 6449 4519 2305 3943 1481 1009 4118 2331 1268 1213 1137 1431 677 1054 2981 XP Spent 58400 | 5300 670 . 1400 . 5300 7980 6300 6700 2310 4025 . . 4965 4100 . . 2100 2600 . 1550 3100 Upgrades 77 | 7 6 . 1 . 10 7 3 2 8 4 . . 9 1 . . 1 1 . 5 12 Power Slot 1 | . . . . . . . . . . . . . 1 . . . . . . . . Propulsion Slot 5 | 3 . . . . . 2 . . . . . . . . . . . . . . . Utility Slot 13 | 3 . . 1 . 1 2 2 2 . . . . 1 1 . . . . . . . Weapon Slot 3 | 1 . . . . . . 1 . . 1 . . . . . . . . . . . Core Integrity 21 | . . . . . . . . . 4 . . . 7 . . . . . . . 10 Heat Dissipation 6 | . 4 . . . . 2 . . . . . . . . . . . . . . . Energy Generation 3 | . . . . . . 1 . . 2 . . . . . . . . . . . . Energy Storage 2 | . . . . . . . . . 1 1 . . . . . . . . . . . Mass Support 6 | . 1 . . . . . . . 1 2 . . . . . . 1 1 . . . Inventory Capacity 2 | . 1 . . . 1 . . . . . . . . . . . . . . . . Sight Range 2 | . . . . . 2 . . . . . . . . . . . . . . . . Hack Attack % 4 | . . . . . 4 . . . . . . . . . . . . . . . . Hack Defense % 2 | . . . . . 2 . . . . . . . . . . . . . . . . KI Resistance % 4 | . . . . . . . . . . . . . . . . . . . . 2 2 TH Resistance % 3 | . . . . . . . . . . . . . . . . . . . . 3 . Protomatter Created 11871 | . 108 84 . . 156 783 642 370 76 1037 639 681 1074 2864 135 433 998 . 171 156 1464 Integrity Restored 10990 | . 145 58 . . 167 956 938 370 151 1246 588 417 875 1339 225 131 562 . 42 223 2557 Core 8452 | . 51 26 . . 48 726 761 308 125 1013 451 348 704 846 179 115 461 . 33 155 2102 Parts 2538 | . 94 32 . . 119 230 177 62 26 233 137 69 171 493 46 16 101 . 9 68 455 Protomatter Decayed 20713 | . 55 128 . . 9 367 361 146 25 540 436 453 842 2646 . 484 632 . 74 79 13436 Game ------ Seed SigixCombatDriver Manual? 0 Play Time 03:40:57 Cumulative 97.1 hours Start 2024.01.25 @ 02:20:54 End 2024.01.25 @ 06:11:58 Sessions 1 Manual Loads 0 Difficulty Explorer Special Mode Winter2019/RPGLIKE Game No. 42 Rogue 6 Adventurer 16 Explorer 20 Win Type 8 Total 17 Types 12/4/0/0/0/0/0/0/1 Lore% 64 Gallery% 69 Achievement% 66 Wizard Run 0 Options --------- ASCII 0 Keyboard 0 Movement Mouse Keybinds 0 Fullscreen 1 Font 24/Terminus Map View 76x50 Tactical HUD 1 Map Filters NONE Filters NONE Steam 1 RUN: 00d8c6df-a105-4388-bd9e-2ac236944848